fUSD/lending_fUSD_20241004
["ID","MTS","AMOUNT","RATE_DAILY","PERIOD"]
[339836240,1728052325599,-500.0,0.00039726,120]
[339836241,1728052325611,-500.0,0.00039726,120]
[339836242,1728052325623,-344.1980707,0.00039726,120]
[339836243,1728052325635,-1439.25,0.00039726,120]
[339836244,1728052325646,-500.0,0.00039726,120]
[339836245,1728052325657,-3944.47,0.00039726,120]
[339836246,1728052325668,-500.0,0.00039726,120]
[339836247,1728052325677,-779.04,0.00039726,120]
[339836248,1728052325686,-576.6,0.00039726,120]
[339836249,1728052325696,-4476.87,0.00039726,120]
[339836250,1728052325705,-657.6,0.00039726,120]
[339836251,1728052325715,-500.0,0.00039726,120]
[339836252,1728052325726,-774.23,0.00039726,120]
[339836253,1728052325737,-500.0,0.00039726,120]
[339836254,1728052325747,-500.0,0.00039726,120]
[339836255,1728052325757,-670.06,0.00039726,120]
[339836256,1728052325768,-500.0,0.00039726,120]
[339836257,1728052325778,-500.0,0.00039726,120]
[339836258,1728052325787,-500.0,0.00039726,120]
[339836259,1728052325796,-500.0,0.00039726,120]
[339836260,1728052325805,-500.0,0.00039726,120]
[339836261,1728052325816,-4369.58,0.00039726,120]
[339836262,1728052325827,-1234.77,0.00039726,120]
[339836263,1728052325836,-500.0,0.00039726,120]
[339836264,1728052325846,-500.0,0.00039726,120]
[339836265,1728052325855,-7513.51,0.00039726,120]
[339836266,1728052325865,-1456.1,0.00039726,120]
[339836267,1728052325875,-500.0,0.00039726,120]
[339836268,1728052325884,-950.52,0.00039726,120]
[339836269,1728052325894,-1323.19,0.00039726,120]
[339836270,1728052325904,-500.0,0.00039726,120]
[339836271,1728052325915,-1491.4,0.00039726,120]
[339836272,1728052325925,-500.0,0.00039726,120]
[339836273,1728052325935,-511.9,0.00039726,120]
[339836274,1728052325944,-500.0,0.00039726,120]
[339836275,1728052325954,-500.0,0.00039726,120]
[339836276,1728052325963,-500.0,0.00039726,120]
[339836277,1728052325975,-500.0,0.00039726,120]
[339836278,1728052325984,-500.0,0.00039726,120]
[339836279,1728052325994,-500.0,0.00039726,120]
[339836280,1728052326004,-1484.53,0.00039726,120]
[339836281,1728052326015,-939.24,0.00039726,120]
[339836282,1728052326024,-502.44808334,0.00039726,120]
[339836283,1728052326033,-2473.72,0.00039726,120]
[339836284,1728052326043,-500.0,0.00039726,120]
[339836285,1728052326052,-500.0,0.00039726,120]
[339836286,1728052326061,-597.49911906,0.00039726,120]
[339836287,1728052326070,-578.69,0.00039726,120]
[339836288,1728052326078,-500.0,0.00039726,120]
[339836289,1728052326088,-576.71,0.00039726,120]
[339836290,1728052326097,-782.01,0.00039726,120]
[339836291,1728052326106,-500.0,0.00039726,120]
[339836292,1728052326116,-500.0,0.00039726,120]
[339836293,1728052326127,-500.0,0.00039726,120]
[339836294,1728052326136,-500.0,0.00039726,120]
[339836295,1728052326146,-500.0,0.00039726,120]
[339836296,1728052326155,-3591.16,0.00039726,120]
[339836297,1728052326165,-500.0,0.00039726,120]
[339836298,1728052326175,-500.0,0.00039726,120]
[339836299,1728052326185,-500.0,0.00039726,120]
[339836300,1728052326194,-500.0,0.00039726,120]
[339836301,1728052326204,-500.0,0.00039726,120]
[339836302,1728052326214,-3218.69,0.00039726,120]
[339836303,1728052326223,-500.0,0.00039726,120]
[339836304,1728052326233,-500.0,0.00039726,120]
[339836305,1728052326242,-502.13077447,0.00039726,120]
[339836306,1728052326252,-500.0,0.00039726,120]
[339836307,1728052326261,-970.53,0.00039726,120]
[339836308,1728052326279,-964.0,0.00039726,120]
[339836309,1728052326289,-500.0,0.00039726,120]
[339836310,1728052326300,-623.3,0.00039726,120]
[339836311,1728052326310,-770.71,0.00039726,120]
[339836312,1728052326320,-500.0,0.00039726,120]
[339836313,1728052326329,-500.0,0.00039726,120]
[339836314,1728052326339,-1335.89,0.00039726,120]
[339836315,1728052326348,-1460.22,0.00039726,120]
[339836316,1728052326358,-500.0,0.00039726,120]
[339836317,1728052326367,-1654.84,0.00039726,120]
[339836318,1728052326377,-4976.51,0.00039726,120]
[339836319,1728052326386,-250.78,0.00039726,120]
[339836320,1728052326396,-500.0,0.00039726,120]
[339836321,1728052326405,-932.62,0.00039726,120]
[339836322,1728052326415,-733.59,0.00039726,120]
[339836323,1728052326424,-500.0,0.00039726,120]
[339836324,1728052326434,-11036.81,0.00039726,120]
[339836325,1728052326444,-500.0,0.00039726,120]
[339836326,1728052326454,-500.0,0.00039726,120]
[339836327,1728052326464,-1867.11,0.00039726,120]
[339836328,1728052326473,-502.75503742,0.00039726,120]
[339836329,1728052326483,-2395.29,0.00039726,120]
[339836330,1728052326493,-500.0,0.00039726,120]
[339836331,1728052326502,-1311.12,0.00039726,120]
[339836332,1728052326512,-500.0,0.00039726,120]
[339836333,1728052326525,-538.86,0.00039726,120]
[339836334,1728052326535,-1321.64,0.00039726,120]
[339836335,1728052326544,-500.0,0.00039726,120]
[339836336,1728052326553,-500.0,0.00039726,120]
[339836337,1728052326563,-500.0,0.00039726,120]
[339836338,1728052326572,-500.0,0.00039726,120]
[339836339,1728052326581,-500.0,0.00039726,120]
[339836340,1728052326590,-686.82,0.00039726,120]
[339836341,1728052326599,-1288.59,0.00039726,120]
[339836342,1728052326610,-500.0,0.00039726,120]
[339836343,1728052326619,-500.0,0.00039726,120]
[339836344,1728052326630,-500.0,0.00039726,120]
[339836345,1728052326640,-1800.34,0.00039726,120]
[339836346,1728052326650,-500.0,0.00039726,120]
[339836347,1728052326660,-235.94029468,0.00039726,120]
[339836348,1728052326670,-500.0,0.00039726,120]
[339836349,1728052326681,-845.07,0.00039726,120]
[339836350,1728052326691,-500.0,0.00039726,120]
[339836351,1728052326701,-500.0,0.00039726,120]
[339836352,1728052326711,-1469.35,0.00039726,120]
[339836353,1728052326720,-1052.81,0.00039726,120]
[339836354,1728052326730,-500.0,0.00039726,120]
[339836355,1728052326739,-1253.47,0.00039726,120]
[339836356,1728052326751,-6995.81,0.00039726,120]
[339836357,1728052326760,-500.0,0.00039726,120]
[339836358,1728052326772,-500.0,0.00039726,120]
[339836359,1728052326785,-500.0,0.00039726,120]
[339836360,1728052326795,-500.0,0.00039726,120]
[339836361,1728052326804,-500.0,0.00039726,120]
[339836362,1728052326814,-500.0,0.00039726,120]
[339836363,1728052326823,-507.47,0.00039726,120]
[339836364,1728052326833,-500.0,0.00039726,120]
[339836365,1728052326842,-500.0,0.00039726,120]
[339836366,1728052326851,-2611.3,0.00039726,120]
[339836367,1728052326861,-500.0,0.00039726,120]
[339836368,1728052326870,-604.27,0.00039726,120]
[339836369,1728052326879,-500.0,0.00039726,120]
[339836370,1728052326889,-500.0,0.00039726,120]
[339836371,1728052326898,-2230.01,0.00039726,120]
[339836372,1728052326908,-500.0,0.00039726,120]
[339836373,1728052326917,-646.77,0.00039726,120]
[339836374,1728052326927,-500.0,0.00039726,120]
[339836375,1728052326937,-502.62116954,0.00039726,120]
[339836376,1728052326947,-500.0,0.00039726,120]
[339836377,1728052326956,-500.0,0.00039726,120]
[339836378,1728052326965,-500.0,0.00039726,120]
[339836379,1728052326975,-500.0,0.00039726,120]
[339836380,1728052326984,-502.95136999,0.00039726,120]
[339836381,1728052326993,-514.91,0.00039726,120]
[339836382,1728052327003,-501.94727792,0.00039726,120]
[339836383,1728052327013,-500.0,0.00039726,120]
[339836384,1728052327025,-1404.49,0.00039726,120]
[339836385,1728052327034,-500.0,0.00039726,120]
[339836386,1728052327044,-500.0,0.00039726,120]
[339836387,1728052327053,-500.0,0.00039726,120]
[339836388,1728052327063,-500.0,0.00039726,120]
[339836389,1728052327072,-500.0,0.00039726,120]
[339836390,1728052327081,-500.0,0.00039726,120]
[339836391,1728052327090,-606.88,0.00039726,120]
[339836392,1728052327100,-1190.32,0.00039726,120]
[339836393,1728052327109,-1093.31,0.00039726,120]
[339836394,1728052327118,-1530.35,0.00039726,120]
[339836395,1728052327127,-500.0,0.00039726,120]
[339836396,1728052327136,-500.0,0.00039726,120]
[339836397,1728052327145,-1303.53,0.00039726,120]
[339836398,1728052327154,-500.0,0.00039726,120]
[339836399,1728052327163,-500.0,0.00039726,120]
[339836400,1728052327172,-500.0,0.00039726,120]
[339836401,1728052327182,-765.62,0.00039726,120]
[339836402,1728052327191,-625.05,0.00039726,120]
[339836403,1728052327200,-502.3139858,0.00039726,120]
[339836404,1728052327209,-500.0,0.00039726,120]
[339836405,1728052327218,-500.0,0.00039726,7]
[339836406,1728052327227,-368.59259865,0.00039726,120]
[339836407,1728052327236,-1163.76,0.00039726,120]
[339836408,1728052327245,-500.0,0.00039726,120]
[339836409,1728052327255,-500.0,0.00039726,120]
[339836410,1728052327266,-2290.51,0.00039726,120]
[339836411,1728052327276,-500.0,0.00039726,120]
[339836412,1728052327285,-649.86,0.00039726,120]
[339836413,1728052327297,-499.10467813,0.00039726,120]
[339836414,1728052327306,-500.0,0.00039726,120]
[339836415,1728052327315,-716.37,0.00039726,120]
[339836416,1728052327325,-500.0,0.00039726,120]
[339836417,1728052327335,-500.0,0.00039726,120]
[339836418,1728052327344,-500.0,0.00039726,120]
[339836419,1728052327353,-500.0,0.00039726,120]
[339836420,1728052327362,-500.0,0.00039726,120]
[339836421,1728052327371,-3503.34,0.00039726,120]
[339836422,1728052327381,-500.0,0.00039726,120]
[339836423,1728052327603,-500.0,0.00039726,120]
[339836424,1728052327613,-500.0,0.00039726,120]
[339836425,1728052327624,-573.3836011,0.00039726,120]
[339836426,1728052327633,-5035.5,0.00039726,120]
[339836427,1728052327644,-1925.44,0.00039726,120]
[339836428,1728052327653,-495.25688105,0.00039726,120]
[339836429,1728052327663,-7070.31,0.00039726,120]
[339836430,1728052327672,-501.74974673,0.00039726,120]
[339836431,1728052327683,-500.0,0.00039726,120]
[339836432,1728052327692,-1047.78,0.00039726,120]
[339836433,1728052327701,-500.0,0.00039726,120]
[339836434,1728052327711,-503.27719034,0.00039726,120]
[339836435,1728052327720,-658.7,0.00039726,120]
[339836436,1728052327810,-502.09369275,0.00039726,120]
[339836437,1728052327819,-500.0,0.00039726,120]
[339836438,1728052327829,-4318.76,0.00039726,120]
[339836439,1728052327838,-500.0,0.00039726,120]
[339836440,1728052327848,-1963.01,0.00039726,120]
[339836441,1728052327857,-502.45058061,0.00039726,120]
[339836442,1728052327867,-500.0,0.00039726,30]
[339836443,1728052327876,-500.0,0.00039726,120]
[339836444,1728052327885,-1732.87,0.00039726,120]
[339836445,1728052327894,-500.0,0.00039726,120]
[339836446,1728052327903,-500.0,0.00039726,120]
[339836447,1728052327913,-500.0,0.00039726,120]
[339836448,1728052327922,-508.8513992,0.00039726,120]
[339836449,1728052327931,-500.0,0.00039726,120]
[339836450,1728052327940,-500.0,0.00039726,120]
[339836451,1728052327949,-578.96785175,0.00039726,120]
[339836452,1728052327958,-500.0,0.00039726,120]
[339836453,1728052327967,-500.0,0.00039726,120]
[339836454,1728052327976,-500.0,0.00039726,120]
[339836455,1728052327985,-449.96598214,0.00039726,120]
[339836456,1728052327994,-820.76,0.00039726,120]
[339836457,1728052328004,-500.0,0.00039726,120]
[339836458,1728052328015,-2184.74,0.00039726,120]
[339836459,1728052328024,-500.0,0.00039726,120]
[339836460,1728052328033,-3611.87,0.00039726,120]
[339836461,1728052328042,-825.07,0.00039726,120]
[339836462,1728052328051,-1967.11,0.00039726,120]
[339836463,1728052328060,-1805.1,0.00039726,120]
[339836464,1728052328069,-3035.24,0.00039726,120]
[339836465,1728052328078,-511.74,0.00039726,120]
[339836466,1728052328087,-500.0,0.00039726,120]
[339836467,1728052328096,-500.0,0.00039726,120]
[339836468,1728052328104,-500.0,0.00039726,120]
[339836469,1728052328114,-560.83,0.00039726,120]
[339836470,1728052328123,-500.0,0.00039726,120]
[339836471,1728052328132,-501.76024826,0.00039726,120]
[339836472,1728052328141,-500.0,0.00039726,120]
[339836473,1728052328150,-1582.94,0.00039726,120]
[339836474,1728052328160,-5880.09,0.00039726,120]
[339836475,1728052328169,-1065.36,0.00039726,120]
[339836476,1728052328178,-1564.74,0.00039726,120]
[339836477,1728052328187,-500.0,0.00039726,120]
[339836478,1728052328196,-4434.66,0.00039726,120]
[339836479,1728052328205,-840.82,0.00039726,120]
[339836480,1728052328214,-778.93,0.00039726,120]
[339836481,1728052328224,-500.0,0.00039726,120]
[339836482,1728052328233,-1115.42,0.00039726,120]
[339836483,1728052328245,-1167.3,0.00039726,120]
[339836484,1728052328256,-501.85358568,0.00039726,120]
[339836485,1728052328265,-501.83421323,0.00039726,120]
[339836486,1728052328274,-500.0,0.00039726,120]
[339836487,1728052328283,-641.17,0.00039726,120]
[339836488,1728052328294,-1034.46,0.00039726,120]
[339836489,1728052328306,-617.04117875,0.00039726,120]
[339836490,1728052328317,-500.0,0.00039726,120]
[339836491,1728052328326,-531.99288635,0.00039726,120]
[339836492,1728052328336,-640.61,0.00039726,120]
[339836493,1728052328346,-541.94,0.00039726,120]
[339836494,1728052328357,-500.0,0.00039726,120]
[339836495,1728052328367,-502.45696942,0.00039726,120]
[339836496,1728052328378,-500.0,0.00039726,120]
[339836497,1728052328388,-500.0,0.00039726,120]
[339836498,1728052328399,-973.61,0.00039726,120]
[339836499,1728052328408,-500.0,0.00039726,120]
[339836500,1728052328418,-1034.57,0.00039726,120]
[339836501,1728052328429,-500.0,0.00039726,120]
[339836502,1728052328439,-500.0,0.00039726,2]
[339836503,1728052328448,-500.0,0.00039726,120]
[339836504,1728052328457,-9952.7,0.00039726,120]
[339836505,1728052328466,-2401.59,0.00039726,120]
[339836506,1728052328475,-500.0,0.00039726,120]
[339836507,1728052328484,-665.23,0.00039726,120]
[339836508,1728052328493,-500.0,0.00039726,120]
[339836509,1728052328502,-503.06,0.00039726,120]
[339836510,1728052328511,-274.1342097,0.00039726,120]
[339836511,1728052328523,-1417.36,0.00039726,120]
[339836512,1728052328532,-500.0,0.00039726,120]
[339836513,1728052328542,-501.84559793,0.00039726,120]
[339836514,1728052328551,-500.0,0.00039726,120]
[339836515,1728052328561,-500.0,0.00039726,120]
[339836516,1728052328572,-1278.94,0.00039726,120]
[339836517,1728052328582,-500.0,0.00039726,120]
[339836518,1728052328592,-297.44,0.00039726,120]
[339836519,1728052328602,-500.0,0.00039726,120]
[339836520,1728052328613,-500.0,0.00039726,120]
[339836521,1728052328622,-666.8,0.00039726,120]
[339836522,1728052328631,-502.50926055,0.00039726,120]
[339836523,1728052328640,-500.0,0.00039726,120]
[339836524,1728052328649,-500.0,0.00039726,120]
[339836525,1728052328659,-1288.99,0.00039726,120]
[339836526,1728052328668,-5537.59,0.00039726,120]
[339836527,1728052328678,-694.07,0.00039726,120]
[339836528,1728052328687,-1883.94,0.00039726,120]
[339836529,1728052328696,-935.01,0.00039726,120]
[339836530,1728052328705,-447.58151095,0.00039726,120]
[339836531,1728052328715,-500.0,0.00039726,120]
[339836532,1728052328723,-500.0,0.00039726,120]
[339836533,1728052328732,-347.49737457,0.00039726,120]
[339836534,1728052328741,-1656.57,0.00039726,120]
[339836535,1728052328751,-755.83,0.00039726,120]
[339836536,1728052328760,-500.0,0.00039726,120]
[339836537,1728052328771,-500.0,0.00039726,120]
[339836538,1728052328780,-823.41,0.00039726,120]
[339836539,1728052328789,-500.0,0.00039726,120]
[339836540,1728052328798,-1638.25814047,0.00039732,30]
[339836541,1728052328808,-2206.77672807,0.00039732,30]
[339836542,1728052328817,-2575.56839506,0.00039732,30]
[339836543,1728052328826,-396.57,0.00039733,2]
[339836544,1728052328836,-21955.13678732,0.00039762,90]
[339836545,1728052328846,-233.100417,0.00039798,120]
[339836546,1728052328856,-500.0,0.00039808,7]
[339836547,1728052328865,-552892.26006003,0.0003982,30]
[339836548,1728052328875,-196.76462958,0.0003982,30]
[339836549,1728052328884,-38527.00189955,0.0003988,2]
[339836550,1728052328894,-1511003.21931106,0.000399,60]
[339836551,1728052328903,-415046.93682021,0.000399,60]
[339836552,1728052328912,-802.34646485,0.000399,5]
[339836553,1728052328922,-208.42849529,0.000399,2]
[339836554,1728052328931,-150.0,0.00039904,120]
[339836555,1728052328941,-2177.410773,0.00039973,2]
[339836556,1728052328952,-3927.4583287,0.00039973,2]
[339836557,1728052328961,-884.4701662,0.00039973,2]
[339836558,1728052328970,-9146.6288017,0.00039973,2]
[339836559,1728052328980,-684.7699014,0.00039973,2]
[339836560,1728052328989,-150.0,0.00039996,90]
[339836561,1728052329000,-150.0,0.00039996,90]
[339836562,1728052329010,-200.13754047,0.00039999,30]
[339836563,1728052329021,-50000.0,0.0004,30]
[339836564,1728052329030,-50000.0,0.0004,40]
[339836565,1728052329039,-1000000.0,0.0004,120]
[339836566,1728052329048,-424.0,0.0004,120]
[339836567,1728052329057,-300.0,0.0004,120]
[339836568,1728052329065,-311.92115898,0.0004,30]
[339836569,1728052329075,-5406.94963581,0.0004,120]
[339836570,1728052329084,-5000.0,0.0004,10]
[339836571,1728052329093,-5000.0,0.0004,9]
[339836572,1728052329102,-5000.0,0.0004,8]
[339836573,1728052329111,-5000.0,0.0004,7]
[339836574,1728052329120,-4221.4,0.0004,6]
[339836575,1728052329129,-76505.09689288,0.0004,30]
[339836576,1728052329137,-650.0,0.0004,120]
[339836577,1728052329146,-198.0,0.0004,120]
[339836578,1728052329155,-80533.0,0.0004,30]
[339836579,1728052329165,-50020.0,0.0004,7]
[339836580,1728052329174,-8933.67756394,0.0004,30]
[339836581,1728052329183,-33895.88576292,0.0004,30]
[339836582,1728052329192,-38267.57444268,0.0004,30]
[339836583,1728052329201,-155.48182,0.0004,120]
[339836584,1728052329210,-150.159144,0.0004,120]
[339836585,1728052329219,-500.0,0.0004,120]
[339836586,1728052329227,-500.0,0.0004,120]
[339836587,1728052329236,-500.0,0.0004,120]
[339836588,1728052329245,-500.0,0.0004,120]
[339836589,1728052329255,-500.0,0.0004,120]
[339836590,1728052329263,-500.0,0.0004,120]
[339836591,1728052329275,-500.0,0.0004,120]
[339836592,1728052329284,-500.0,0.0004,120]
[339836593,1728052329294,-500.0,0.0004,120]
[339836594,1728052329303,-500.0,0.0004,120]
[339836595,1728052329312,-500.0,0.0004,120]
[339836596,1728052329321,-500.0,0.0004,120]
[339836597,1728052329331,-500.0,0.0004,120]
[339836598,1728052329342,-498.26094126,0.0004,120]
[339836599,1728052329352,-500.0,0.0004,120]
[339836600,1728052329362,-500.0,0.0004,120]
[339836601,1728052329372,-500.0,0.0004,120]
[339836602,1728052329381,-500.0,0.0004,120]
[339836603,1728052329390,-500.0,0.0004,120]
[339836604,1728052329399,-500.0,0.0004,120]
[339836605,1728052329408,-1279.35,0.0004,120]
[339836606,1728052329418,-500.0,0.0004,120]
[339836607,1728052329427,-500.0,0.0004,120]
[339836608,1728052329438,-500.0,0.0004,120]
[339836609,1728052329447,-686.46,0.0004,120]
[339836610,1728052329457,-500.0,0.0004,120]
[339836611,1728052329466,-500.0,0.0004,120]
[339836612,1728052329475,-523.99,0.0004,120]
[339836613,1728052329483,-500.0,0.0004,120]
[339836614,1728052329492,-694.3,0.0004,120]
[339836615,1728052329502,-500.0,0.0004,120]
[339836616,1728052329511,-511.92,0.0004,120]
[339836617,1728052329523,-500.0,0.0004,120]
[339836618,1728052329540,-500.0,0.0004,120]
[339836619,1728052329549,-500.0,0.0004,120]
[339836620,1728052329558,-500.0,0.0004,120]
[339836621,1728052329567,-500.0,0.0004,120]
[339836622,1728052329576,-500.0,0.0004,120]
[339836623,1728052329585,-500.0,0.0004,120]
[339836624,1728052329594,-571.19,0.0004,7]
[339836625,1728052329602,-500.0,0.0004,120]
[339836626,1728052329611,-568.56150882,0.0004,120]
[339836627,1728052329620,-500.0,0.0004,120]
[339836628,1728052329629,-500.0,0.0004,120]
[339836629,1728052329638,-500.0,0.0004,120]
[339836630,1728052329647,-500.0,0.0004,120]
[339836631,1728052329657,-500.0,0.0004,120]
[339836632,1728052329666,-500.0,0.0004,120]
[339836633,1728052329674,-500.0,0.0004,120]
[339836634,1728052329683,-626.02,0.0004,120]
[339836635,1728052329692,-500.0,0.0004,120]
[339836636,1728052329702,-299.55865344,0.0004,120]
[339836637,1728052329712,-500.0,0.0004,120]
[339836638,1728052329721,-758.01,0.0004,120]
[339836639,1728052329730,-500.0,0.0004,120]
[339836640,1728052329739,-500.0,0.0004,120]
[339836641,1728052329749,-2079.16,0.0004,120]
[339836642,1728052329758,-500.0,0.0004,120]
[339836643,1728052329771,-555.19,0.0004,120]
[339836644,1728052329780,-571.51,0.0004,120]
[339836645,1728052329790,-500.0,0.0004,120]
[339836646,1728052329799,-500.0,0.0004,120]
[339836647,1728052329808,-500.0,0.0004,120]
[339836648,1728052329817,-376.16260663,0.0004,120]
[339836649,1728052329826,-289.9975774,0.0004,120]
[339836650,1728052329836,-498.58301614,0.0004,120]
[339836651,1728052329845,-500.0,0.0004,120]
[339836652,1728052329854,-500.0,0.0004,120]
[339836653,1728052329863,-500.0,0.0004,120]
[339836654,1728052329872,-500.0,0.0004,120]
[339836655,1728052329881,-612.16,0.0004,120]
[339836656,1728052329891,-500.0,0.0004,120]
[339836657,1728052329900,-1560.63,0.0004,120]
[339836658,1728052329909,-500.0,0.0004,120]
[339836659,1728052329918,-883.27,0.0004,120]
[339836660,1728052329927,-500.0,0.0004,120]
[339836661,1728052329936,-500.0,0.0004,120]
[339836662,1728052329945,-586.05,0.0004,120]
[339836663,1728052329955,-500.0,0.0004,120]
[339836664,1728052329964,-498.58298625,0.0004,120]
[339836665,1728052329973,-286.11150168,0.0004,120]
[339836666,1728052329982,-500.0,0.0004,120]
[339836667,1728052329992,-570.66056038,0.0004,120]
[339836668,1728052330002,-500.0,0.0004,120]
[339836669,1728052330012,-500.0,0.0004,120]
[339836670,1728052330027,-500.0,0.0004,120]
[339836671,1728052330037,-623.92,0.0004,120]
[339836672,1728052330046,-500.0,0.0004,120]
[339836673,1728052330055,-790.33,0.0004,120]
[339836674,1728052330065,-498.59264064,0.0004,120]
[339836675,1728052330076,-500.0,0.0004,120]
[339836676,1728052330086,-533.77,0.0004,120]
[339836677,1728052330095,-500.0,0.0004,120]
[339836678,1728052330104,-500.0,0.0004,120]
[339836679,1728052330114,-500.0,0.0004,120]
[339836680,1728052330123,-500.0,0.0004,120]
[339836681,1728052330132,-500.0,0.0004,120]
[339836682,1728052330141,-741.16,0.0004,120]
[339836683,1728052330150,-500.0,0.0004,120]
[339836684,1728052330159,-500.0,0.0004,120]
[339836685,1728052330168,-500.0,0.0004,120]
[339836686,1728052330177,-500.0,0.0004,120]
[339836687,1728052330187,-500.0,0.0004,120]
[339836688,1728052330196,-573.42261138,0.0004,120]
[339836689,1728052330205,-500.0,0.0004,120]
[339836690,1728052330215,-500.0,0.0004,120]
[339836691,1728052330224,-500.0,0.0004,120]
[339836692,1728052330233,-500.0,0.0004,120]
[339836693,1728052330242,-805.8,0.0004,120]
[339836694,1728052330252,-705.12,0.0004,120]
[339836695,1728052330261,-500.0,0.0004,120]
[339836696,1728052330274,-500.0,0.0004,120]
[339836697,1728052330284,-500.0,0.0004,120]
[339836698,1728052330294,-503.0935431,0.0004,120]
[339836699,1728052330304,-377.47507928,0.0004,120]
[339836700,1728052330314,-500.0,0.0004,120]
[339836701,1728052330323,-174.37621903,0.0004,120]
[339836702,1728052330332,-503.26648973,0.0004,120]
[339836703,1728052330342,-500.0,0.0004,120]
[339836704,1728052330351,-500.0,0.0004,120]
[339836705,1728052330360,-500.0,0.0004,120]
[339836706,1728052330370,-500.0,0.0004,120]
[339836707,1728052330380,-500.0,0.0004,120]
[339836708,1728052330390,-680.56,0.0004,120]
[339836709,1728052330399,-498.58269248,0.0004,120]
[339836710,1728052330408,-500.0,0.0004,120]
[339836711,1728052330418,-500.0,0.0004,120]
[339836712,1728052330427,-500.0,0.0004,120]
[339836713,1728052330436,-500.0,0.0004,120]
[339836714,1728052330446,-500.0,0.0004,120]
[339836715,1728052330455,-620.12,0.0004,120]
[339836716,1728052330465,-500.0,0.0004,120]
[339836717,1728052330474,-500.0,0.0004,120]
[339836718,1728052330483,-500.0,0.0004,120]
[339836719,1728052330493,-500.0,0.0004,120]
[339836720,1728052330503,-500.0,0.0004,120]
[339836721,1728052330512,-745.23,0.0004,120]
[339836722,1728052330526,-500.0,0.0004,120]
[339836723,1728052330535,-500.0,0.0004,120]
[339836724,1728052330545,-500.0,0.0004,120]
[339836725,1728052330554,-500.0,0.0004,120]
[339836726,1728052330564,-500.0,0.0004,120]
[339836727,1728052330574,-500.0,0.0004,120]
[339836728,1728052330583,-648.92,0.0004,120]
[339836729,1728052330593,-650.29,0.0004,120]
[339836730,1728052330602,-500.0,0.0004,120]
[339836731,1728052330611,-500.0,0.0004,120]
[339836732,1728052330621,-500.0,0.0004,120]
[339836733,1728052330631,-500.0,0.0004,120]
[339836734,1728052330641,-502.48090875,0.0004,120]
[339836735,1728052330650,-500.0,0.0004,120]
[339836736,1728052330660,-500.0,0.0004,120]
[339836737,1728052330670,-500.0,0.0004,120]
[339836738,1728052330680,-500.0,0.0004,120]
[339836739,1728052330690,-500.0,0.0004,120]